[Event "22nd Hoogeveen Open 2018"]
[Site "Hoogeveen"]
[Date "2018.10.24"]
[Round "6"]
[White "Murray, David"]
[Black "Minko, Dmitry"]
[Result "1-0"]
[ECO "C45"]
[WhiteElo "2222"]
[BlackElo "2011"]
[Annotator "NA"]
[PlyCount "63"]
[EventDate "2018.10.20"]
[EventType "swiss"]
[EventCountry "NED"]
[SourceTitle "playchess.com"]
[Source "ChessBase"]
[SourceQuality "1"]
[TimeControl "40/5400+30:1800+30"]

1. e4 {[%emt 0:00:00]} e5 {[%emt 0:00:00]} 2. Nf3 {[%emt 0:00:00]} Nc6 {[%emt 0:00:00]} 3. d4 {[%emt 0:00:00]} exd4 {[%emt 0:00:00]} 4. Nxd4 {[%emt 0:00:05]} Bc5 {[%emt 0:00:00]} 5. Nb3 {[%emt 0:01:10]} Bb4+ {[%emt 0:00:40]} 6. Bd2 {[%emt 0:01:05]} a5 {[%emt 0:01:54]} 7. a3 {[%emt 0:00:47]} Bxd2+ {[%emt 0:17:04] LiveBook: 13 Games} 8. Qxd2 {[%emt 0:01:06]} Nf6 {[%emt 0:08:08]} 9. Nc3 {[%emt 0:01:25]} d6 {[%emt 0:12:08]} 10. O-O-O {[%emt 0:03:23]} O-O $14 {[%emt 0:05:05]} 11. Nd4 {[%emt 0:03:19]} Bd7 {[%emt 0:04:27]} 12. f3 {[%emt 0:05:46]} Nxd4 {[%emt 0:18:12]} 13. Qxd4 {[%emt 0:00:53]} Bc6 {[%emt 0:00:07]} 14. g4 {[%emt 0:06:50]} Nd7 {[%emt 0:00:46]} 15. h4 {[%emt 0:05:53]} Nc5 {[%emt 0:00:32]} 16. g5 {[%emt 0:03:58]} f5 {[%emt 0:01:43]} 17. Bc4+ {[%emt 0:06:10]} Kh8 {[%emt 0:00:13]} 18. Rdg1 {[%emt 0:03:01]} Qe7 {[%emt 0:09:51]} 19. exf5 {[%emt 0:15:06]} Rxf5 {[%emt 0:02:15]} 20. Re1 {[%emt 0:03:08]} Qf8 {[%emt 0:02:19]} 21. Bd5 {[%emt 0:04:14]} Bxd5 {[%emt 0:01:36]} 22. Nxd5 {[%emt 0:00:30]} Qf7 {[%emt 0:01:53]} 23. Ne7 {[%emt 0:05:29]} Rxf3 {[%emt 0:01:49]} 24. h5 {[%emt 0:04:34]} Qf4+ {[%emt 0:01:44]} 25. Qxf4 {[%emt 0:00:17]} Rxf4 {[%emt 0:00:07]} 26. g6 {[%emt 0:00:58]} c6 {[%emt 0:03:19]} 27. h6 {[%emt 0:03:47]} Rg4 {[%emt 0:01:10]} 28. hxg7+ {[%emt 0:01:48]} Kxg7 {[%emt 0:00:01]} 29. Rxh7+ {[%emt 0:00:36]} Kf6 {[%emt 0:00:04]} 30. Rf7+ {[%emt 0:00:52]} Kg5 {[%emt 0:00:14]} 31. g7 {[%emt 0:02:27]} Kh6 {[%emt 0:00:42]} 32. Rh1+ {[%emt 0:00:17] Kh7 [%emt 00:00:09]} 1-0

[Event "22nd Hoogeveen Open 2018"]
[Site "Hoogeveen"]
[Date "2018.10.24"]
[Round "6"]
[White "Wedda, Dries"]
[Black "De Boer, Bas"]
[Result "1/2-1/2"]
[ECO "D11"]
[WhiteElo "2216"]
[BlackElo "2102"]
[Annotator "NA"]
[PlyCount "26"]
[EventDate "2018.10.20"]
[EventType "swiss"]
[EventCountry "NED"]
[SourceTitle "playchess.com"]
[Source "ChessBase"]
[SourceQuality "1"]
[TimeControl "40/5400+30:1800+30"]

1. d4 {[%emt 0:00:00]} d5 {[%emt 0:00:00]} 2. c4 {[%emt 0:00:00]} c6 {[%emt 0:00:00]} 3. Nf3 {[%emt 0:00:00]} Nf6 {[%emt 0:00:00]} 4. g3 {[%emt 0:00:00]} dxc4 {[%emt 0:01:01]} 5. Bg2 {[%emt 0:00:13]} g6 {[%emt 0:01:13]} 6. O-O {[%emt 0:08:04]} Bg7 {[%emt 0:00:16]} 7. a4 {[%emt 0:05:13] LiveBook: 97 Partien} Ne4 {[%emt 0:12:59]} 8. Qc2 {[%emt 0:18:11]} Nd6 {[%emt 0:04:49]} 9. e4 {[%emt 0:01:10]} Be6 {[%emt 0:07:23]} 10. Na3 {[%emt 0:08:46]} O-O {[%emt 0:03:59]} 11. Rd1 {[%emt 0:04:05]} Na6 {[%emt 0:08:30]} 12. Ne5 {[%emt 0:11:36]} Nb4 {[%emt 0:07:43]} 13. Qc3 {[%emt 0:13:36]} a5 $11 {[%emt 0:05:19]} 1/2-1/2

[Event "22nd Hoogeveen Open 2018"]
[Site "Hoogeveen"]
[Date "2018.10.24"]
[Round "6"]
[White "Konings, Frans"]
[Black "De Boer, Eelke"]
[Result "0-1"]
[ECO "B06"]
[WhiteElo "2195"]
[BlackElo "2285"]
[Annotator "NA"]
[PlyCount "126"]
[EventDate "2018.10.20"]
[EventType "swiss"]
[EventCountry "NED"]
[SourceTitle "playchess.com"]
[Source "ChessBase"]
[SourceQuality "1"]
[TimeControl "40/5400+30:1800+30"]

1. d4 {[%emt 0:00:00]} Nf6 {[%emt 0:00:36]} 2. g3 {[%emt 0:00:00]} g6 {[%emt 0:00:06]} 3. Bg2 {[%emt 0:00:00]} Bg7 {[%emt 0:01:05]} 4. e4 {[%emt 0:00:00]} d6 {[%emt 0:00:16]} 5. Ne2 {[%emt 0:00:00]} O-O {[%emt 0:00:19]} 6. O-O {[%emt 0:00:03]} c5 {[%emt 0:00:14]} 7. dxc5 {[%emt 0:00:28] B06: Modern Defence} (7. c3 e5 8. h3 Qe7 9. Bg5 exd4 10. cxd4 h6 11. Bxf6 Qxf6 12. Nbc3 cxd4 13. Nd5 Qd8 14. Nxd4 Nc6 15. Nxc6 bxc6 {½-½ (36) Chernyshov,K (2508)-Jones,G (2645) Zalakaros 2014}) 7... dxc5 {[%emt 0:00:07]} 8. e5 {[%emt 0:01:01]} Ng4 {[%emt 0:16:29] LiveBook: 5 Partien} 9. f4 {[%emt 0:00:41]} Qb6 {[%emt 0:02:22]} 10. Nbc3 {[%emt 0:06:06]} e6 $146 {[%emt 0:12:57]} ({Predecessor:} 10... Be6 11. Nd5 Bxd5 12. Qxd5 Nc6 13. h3 Rad8 14. Qb3 Nh6 {1-0 (28) Grigoryan,K (2524)-Zhou,Y (2414) Maribor 2012}) 11. Na4 {[%emt 0:19:52]} Qa5 {[%emt 0:03:33]} 12. Nec3 {[%emt 0:00:24]} h5 {[%emt 0:04:01]} 13. h3 {[%emt 0:02:26]} Nh6 {[%emt 0:01:32]} 14. a3 {[%emt 0:04:07]} Rd8 {[%emt 0:04:34]} 15. b4 {[%emt 0:05:24]} Rxd1 {[%emt 0:05:07]} 16. bxa5 {[%emt 0:00:04]} Rxf1+ {[%emt 0:00:12]} 17. Kxf1 {[%emt 0:00:07]} Na6 {[%emt 0:00:39]} 18. Rb1 {[%emt 0:05:05]} Rb8 {[%emt 0:04:24]} 19. Ne4 {[%emt 0:02:04]} Bf8 {[%emt 0:00:19]} 20. Nf6+ {[%emt 0:07:00]} Kh8 {[%emt 0:04:36]} 21. g4 {[%emt 0:00:58]} hxg4 {[%emt 0:00:07]} 22. hxg4 {[%emt 0:00:08]} Ng8 {[%emt 0:00:29]} 23. Nxg8 {[%emt 0:03:12]} Kxg8 {[%emt 0:00:11]} 24. c4 {[%emt 0:00:11]} Bd7 {[%emt 0:09:35]} 25. Nc3 {[%emt 0:00:04]} Bc6 {[%emt 0:03:01]} 26. Bxc6 {[%emt 0:02:06]} bxc6 {[%emt 0:00:07]} 27. Rxb8 {[%emt 0:00:02]} Nxb8 {[%emt 0:00:10]} 28. Ne4 {[%emt 0:00:26]} Nd7 {[%emt 0:01:23]} 29. Nf6+ {[%emt 0:01:19]} Nxf6 {[%emt 0:01:14]} 30. exf6 {[%emt 0:00:07]} a6 {[%emt 0:06:31]} 31. Ke2 {[%emt 0:02:38]} Bd6 {[%emt 0:01:04]} 32. Kf3 {[%emt 0:00:37]} Kf8 {[%emt 0:02:38]} 33. Be3 {[%emt 0:07:47]} Ke8 {[%emt 0:00:54]} 34. Ke4 {[%emt 0:02:10]} Kd7 {[%emt 0:00:23]} 35. Bd2 {[%emt 0:02:13]} Bf8 {[%emt 0:00:43]} 36. Bc3 {[%emt 0:00:11]} Bd6 {[%emt 0:00:59]} 37. Kf3 {[%emt 0:01:48]} Ke8 {[%emt 0:00:30]} 38. Ke4 {[%emt 0:00:49]} Kd7 {[%emt 0:00:09]} 39. Bd2 {[%emt 0:00:55]} Bf8 {[%emt 0:00:16]} 40. Kf3 $11 {[%emt 0:00:44]} Bd6 {[%emt 0:00:40]} 41. Kg2 {[%emt 0:30:06]} Bc7 {[%emt 0:37:41]} 42. Kh3 {[%emt 0:02:58]} e5 {[%emt 0:03:06]} 43. f5 {[%emt 0:07:09]} gxf5 {[%emt 0:01:00]} 44. gxf5 {[%emt 0:00:04]} Bd8 {[%emt 0:00:29]} 45. Bg5 {[%emt 0:03:17]} Bxa5 {[%emt 0:00:19]} 46. Kg4 {[%emt 0:00:40]} e4 {[%emt 0:00:00]} 47. Be3 {[%emt 0:00:00]} Bc7 {[%emt 0:00:00]} 48. Bxc5 {[%emt 0:00:00]} Bd6 {[%emt 0:00:00]} 49. Bd4 {[%emt 0:00:00]} Bxa3 {[%emt 0:00:00]} 50. Kf4 {[%emt 0:00:00]} a5 {[%emt 0:00:00]} 51. Kxe4 {[%emt 0:00:00]} Kd6 {[%emt 0:00:00]} 52. Kd3 {[%emt 0:00:00]} Bc1 {[%emt 0:03:12]} 53. Kc2 {[%emt 0:00:00]} Bf4 {[%emt 0:00:08]} 54. Kb3 {[%emt 0:00:00]} Be5 {[%emt 0:00:05]} 55. Ba7 {[%emt 0:00:00]} Bxf6 {[%emt 0:01:15]} 56. Bb8+ {[%emt 0:00:00]} Ke7 {[%emt 0:03:25]} 57. Bf4 {[%emt 0:04:38]} Bd4 {[%emt 0:01:14]} 58. Bg5+ {[%emt 0:05:03]} Kd6 {[%emt 0:00:06]} 59. Bd8 {[%emt 0:00:12]} Ke5 {[%emt 0:00:16]} 60. f6 {[%emt 0:01:30]} Ke4 {[%emt 0:01:58]} 61. Bxa5 {[%emt 0:05:24]} Bxf6 {[%emt 0:00:06]} 62. Be1 {[%emt 0:04:05]} Bd4 {[%emt 0:00:43]} 63. Bg3 {[%emt 0:00:52]} f5 {[%emt 0:00:17]} 0-1

[Event "22nd Hoogeveen Open 2018"]
[Site "Hoogeveen"]
[Date "2018.10.24"]
[Round "6"]
[White "Hulshof, Peter"]
[Black "Mijnheer, Peter"]
[Result "1/2-1/2"]
[ECO "D34"]
[WhiteElo "2168"]
[BlackElo "2092"]
[Annotator "NA"]
[PlyCount "29"]
[EventDate "2018.10.20"]
[EventType "swiss"]
[EventCountry "NED"]
[SourceTitle "playchess.com"]
[Source "ChessBase"]
[SourceQuality "1"]
[TimeControl "40/5400+30:1800+30"]

1. g3 {[%emt 0:00:00]} d5 {[%emt 0:00:00]} 2. Bg2 {[%emt 0:00:00]} Nf6 {[%emt 0:02:10]} 3. d3 {[%emt 0:03:58]} c5 {[%emt 0:01:30]} 4. Nf3 {[%emt 0:03:11]} Nc6 {[%emt 0:01:04]} 5. O-O {[%emt 0:00:13]} e6 {[%emt 0:04:42]} 6. c4 {[%emt 0:06:11]} Be7 $11 {[%emt 0:01:29] LiveBook: 48 Games} 7. cxd5 {[%emt 0:07:38]} exd5 {[%emt 0:01:47]} 8. d4 {[%emt 0:01:00]} O-O {[%emt 0:00:50]} 9. Nc3 {[%emt 0:00:32]} Bg4 {[%emt 0:26:13]} 10. dxc5 {[%emt 0:14:44]} Bxc5 {[%emt 0:01:12]} 11. Bg5 {[%emt 0:05:58]} d4 {[%emt 0:00:36]} 12. Ne4 {[%emt 0:09:16]} Be7 {[%emt 0:00:05]} 13. Bxf6 {[%emt 0:04:43]} Bxf6 {[%emt 0:00:03]} 14. Nxf6+ {[%emt 0:00:15]} Qxf6 {[%emt 0:00:09]} 15. h3 {[%emt 0:03:01]} 1/2-1/2

[Event "22nd Hoogeveen Open 2018"]
[Site "Hoogeveen"]
[Date "2018.10.24"]
[Round "6"]
[White "Ingebretsen, Jens E"]
[Black "Zarkovic, Mila"]
[Result "1-0"]
[ECO "B52"]
[WhiteElo "2160"]
[BlackElo "2213"]
[Annotator "NA"]
[PlyCount "107"]
[EventDate "2018.10.20"]
[EventType "swiss"]
[EventCountry "NED"]
[SourceTitle "playchess.com"]
[Source "ChessBase"]
[SourceQuality "1"]
[TimeControl "40/5400+30:1800+30"]

1. e4 {[%emt 0:08:33]} c5 {[%emt 0:00:00]} 2. Nf3 {[%emt 0:00:09]} d6 {[%emt 0:00:00]} 3. Bb5+ {[%emt 0:00:20]} Bd7 {[%emt 0:01:00]} 4. c4 {[%emt 0:00:06]} a6 {[%emt 0:02:02] B52: Sicilian: Moscow Variation with 3...Bd7} (4... g6 5. Nc3 Bg7 6. d4 cxd4 7. Nxd4 Nf6 8. O-O O-O 9. f3 Bxb5 10. cxb5 a6 11. Be3 axb5 12. Ndxb5 {½-½ (35) Karjakin,S (2773)-Duda,J (2737) chess.com INT 2018}) 5. Bxd7+ {[%emt 0:00:06]} Nxd7 {[%emt 0:00:09]} 6. Nc3 {[%emt 0:00:40]} Ngf6 {[%emt 0:00:23]} 7. O-O {[%emt 0:00:31]} e6 {[%emt 0:00:28] LiveBook: 8 Games} 8. d3 {[%emt 0:01:41]} Be7 {[%emt 0:02:15]} 9. h3 {[%emt 0:01:02]} Ne5 $146 {[%emt 0:19:53]} ({Predecessor:} 9... O-O 10. Be3 Rc8 11. Rc1 Re8 12. a3 d5 13. cxd5 exd5 14. exd5 Nb6 15. d6 Qxd6 16. Ne4 Nxe4 17. dxe4 {0-1 (42) Zakharov,A (2356)-Kryakvin,D (2584) Taganrog 2013}) 10. Nh2 {[%emt 0:04:25]} Nc6 {[%emt 0:05:25]} 11. f4 {[%emt 0:00:36]} Nd7 {[%emt 0:05:29]} 12. Be3 {[%emt 0:02:27]} Bf6 {[%emt 0:00:32]} 13. Kh1 {[%emt 0:06:03]} Bd4 {[%emt 0:09:59]} 14. Bd2 {[%emt 0:01:03]} Rb8 {[%emt 0:01:24]} 15. Nf3 {[%emt 0:02:16]} Bf6 {[%emt 0:00:38]} 16. e5 {[%emt 0:08:13]} dxe5 {[%emt 0:11:04]} 17. Ne4 {[%emt 0:00:45]} O-O {[%emt 0:02:40]} 18. Nxf6+ {[%emt 0:10:25]} Qxf6 {[%emt 0:00:11]} 19. fxe5 {[%emt 0:01:45]} Qg6 {[%emt 0:01:47]} 20. Qe2 {[%emt 0:02:40]} h6 {[%emt 0:04:58]} 21. Rad1 {[%emt 0:03:06]} Qh5 {[%emt 0:07:09]} 22. Rfe1 {[%emt 0:05:00]} Rfd8 {[%emt 0:00:39]} 23. Bf4 {[%emt 0:04:12]} Nf8 {[%emt 0:01:28]} 24. Be3 {[%emt 0:04:36]} Nd7 {[%emt 0:04:38]} 25. Bg1 {[%emt 0:00:51]} Rbc8 {[%emt 0:02:24]} 26. a3 {[%emt 0:05:30]} b6 {[%emt 0:05:46]} 27. b3 {[%emt 0:06:45]} Ne7 {[%emt 0:02:30]} 28. d4 {[%emt 0:02:49]} Nf5 {[%emt 0:01:37]} 29. Bh2 {[%emt 0:00:08]} Qg6 {[%emt 0:01:04]} 30. d5 {[%emt 0:00:21]} Ng3+ {[%emt 0:02:53]} 31. Bxg3 {[%emt 0:00:12]} Qxg3 {[%emt 0:00:02]} 32. Qe4 {[%emt 0:02:26]} Nf8 {[%emt 0:00:41]} 33. Rd3 {[%emt 0:01:43]} Qg6 {[%emt 0:00:34]} 34. Qxg6 {[%emt 0:00:50]} Nxg6 {[%emt 0:00:02]} 35. Red1 {[%emt 0:00:18]} exd5 {[%emt 0:01:49]} 36. cxd5 {[%emt 0:00:16]} b5 {[%emt 0:00:28]} 37. g3 {[%emt 0:01:44]} c4 {[%emt 0:00:18]} 38. bxc4 {[%emt 0:00:59]} Rxc4 {[%emt 0:02:12]} 39. Rd4 $11 {[%emt 0:02:49]} Rc3 {[%emt 0:01:23]} 40. R1d3 {[%emt 0:00:10]} Rc2 {[%emt 0:00:32]} 41. Rd2 {[%emt 0:30:49]} Rc3 {[%emt 0:31:06]} 42. R4d3 {[%emt 0:00:11]} Rc4 {[%emt 0:00:00]} 43. d6 {[%emt 0:00:00]} Kf8 {[%emt 0:00:00]} 44. h4 {[%emt 0:00:00]} Re4 {[%emt 0:00:00]} 45. Rd5 {[%emt 0:00:00]} h5 {[%emt 0:00:00]} 46. Kg2 {[%emt 0:00:00]} Ke8 {[%emt 0:00:00]} 47. Rc2 {[%emt 0:00:00]} Re3 {[%emt 0:00:00]} 48. Rc7 {[%emt 0:00:00]} Rd7 {[%emt 0:00:24]} 49. Ng5 {[%emt 0:00:00]} Nh8 {[%emt 0:03:19]} 50. Kf2 {[%emt 0:00:00]} Rxa3 {[%emt 0:00:04]} 51. Rc8+ {[%emt 0:00:00]} Rd8 {[%emt 0:00:04]} 52. d7+ {[%emt 0:00:00]} Ke7 {[%emt 0:00:04]} 53. Rxd8 {[%emt 0:00:00]} Kxd8 {[%emt 0:00:02]} 54. e6 {[%emt 0:00:00]} 1-0

[Event "22nd Hoogeveen Open 2018"]
[Site "Hoogeveen"]
[Date "2018.10.24"]
[Round "6"]
[White "Biermann, Lenhard"]
[Black "Bluhm, Sonja Maria"]
[Result "0-1"]
[ECO "A43"]
[WhiteElo "2153"]
[BlackElo "2281"]
[Annotator "NA"]
[PlyCount "94"]
[EventDate "2018.10.20"]
[EventType "swiss"]
[EventCountry "NED"]
[SourceTitle "playchess.com"]
[Source "ChessBase"]
[SourceQuality "1"]
[TimeControl "40/5400+30:1800+30"]

1. d4 {[%emt 0:00:00]} Nf6 {[%emt 0:00:00]} 2. Nf3 {[%emt 0:00:00]} c5 {[%emt 0:00:00]} 3. d5 {[%emt 0:00:00]} d6 {[%emt 0:00:24]} 4. Nc3 {[%emt 0:00:30]} g6 {[%emt 0:00:51]} 5. h3 {[%emt 0:02:45]} Bg7 {[%emt 0:02:29]} 6. e4 {[%emt 0:00:48]} a6 {[%emt 0:01:36] A43: Schmid Benoni} (6... O-O 7. Bd3 e6 8. O-O exd5 9. exd5 Na6 10. a3 Nc7 11. Bc4 Rb8 12. a4 b6 13. Bg5 h6 14. Bh4 g5 15. Bg3 {0-1 (40) Le Roux,J (2560)-Iturrizaga Bonelli,E (2665) London 2017}) 7. a4 $1 {[%emt 0:00:18] LiveBook: 9 Games} b6 {[%emt 0:00:15]} 8. Bd3 $146 {[%emt 0:01:56]} ({Predecessor:} 8. Bc4 O-O 9. O-O Nbd7 10. Ra3 Ne8 11. Bf4 Ne5 12. Nxe5 dxe5 {½-½ (33) Zegarac,V (2282)-Stamatovic,A (2168) Belgrade 2018}) 8... Bb7 {[%emt 0:00:46]} 9. Bf4 {[%emt 0:02:26]} Nbd7 {[%emt 0:03:10]} 10. O-O {[%emt 0:02:21]} Nh5 {[%emt 0:03:17]} 11. Bh2 {[%emt 0:00:44]} O-O {[%emt 0:00:41]} 12. Nd2 {[%emt 0:02:36]} Bd4 {[%emt 0:20:33]} 13. Nc4 {[%emt 0:14:30]} Rc8 {[%emt 0:03:02]} 14. Kh1 {[%emt 0:05:23]} Ne5 {[%emt 0:03:57]} 15. f4 {[%emt 0:05:13]} Nxc4 {[%emt 0:07:31]} 16. Bxc4 {[%emt 0:01:16]} Qd7 {[%emt 0:03:41]} 17. Qd3 {[%emt 0:09:16]} Ra8 {[%emt 0:00:56]} 18. g4 {[%emt 0:08:02]} Bxc3 {[%emt 0:00:35]} 19. Qxc3 {[%emt 0:00:58]} Ng7 {[%emt 0:00:51]} 20. Qd3 {[%emt 0:01:57]} Ne8 {[%emt 0:12:01]} 21. Qb3 {[%emt 0:04:20]} Nf6 {[%emt 0:07:21]} 22. Rae1 {[%emt 0:02:00]} Rfb8 {[%emt 0:00:51]} 23. g5 {[%emt 0:03:31]} Nh5 {[%emt 0:01:18]} 24. Be2 {[%emt 0:00:54]} Ng7 {[%emt 0:03:33]} 25. Bg4 {[%emt 0:00:11]} Qc7 {[%emt 0:00:13]} 26. f5 {[%emt 0:02:38]} c4 {[%emt 0:01:47]} 27. Qf3 {[%emt 0:01:37]} Rf8 {[%emt 0:01:15]} 28. Bg1 {[%emt 0:03:25]} gxf5 {[%emt 0:01:40]} 29. Bxf5 {[%emt 0:00:36]} ({Much less strong is} 29. exf5 $6 e6 $14) 29... Nxf5 {[%emt 0:02:40]} 30. Qxf5 {[%emt 0:00:52]} Rae8 {[%emt 0:01:41]} 31. g6 {[%emt 0:08:56]} hxg6 {[%emt 0:01:31]} 32. Qg5 {[%emt 0:00:22]} e5 {[%emt 0:05:18]} 33. Rf6 {[%emt 0:01:04]} Kg7 {[%emt 0:01:55]} 34. Ref1 {[%emt 0:08:54]} Re7 {[%emt 0:01:53]} 35. Be3 {[%emt 0:01:01]} Rh8 {[%emt 0:00:20]} 36. h4 {[%emt 0:00:47]} Qd7 {[%emt 0:01:11]} 37. R1f3 {[%emt 0:01:34]} Rh5 {[%emt 0:01:38]} 38. Qxh5 {[%emt 0:02:34]} gxh5 {[%emt 0:00:06]} 39. Bh6+ {[%emt 0:00:16]} Kh7 {[%emt 0:02:10]} 40. Rg3 {[%emt 0:02:10]} Bxd5 {[%emt 0:03:09]} 41. exd5 {[%emt 0:05:28]} Qb7 {[%emt 0:00:25]} ({Worse is} 41... Qxa4 42. Bc1 Re6 43. dxe6 Qc6+ 44. Kh2 Qg2+ 45. Kxg2 fxe6 46. Rh6#) 42. Bf8 {[%emt 0:04:26]} Re6 {[%emt 0:05:05]} 43. Rg7+ {[%emt 0:13:07]} Kh8 {[%emt 0:00:05]} 44. Rfxf7 {[%emt 0:00:17]} Qxd5+ {[%emt 0:00:13]} 45. Kh2 {[%emt 0:01:40]} Rg6 {[%emt 0:01:29]} 46. Rxg6 $19 {[%emt 0:04:52]} Qxf7 {[%emt 0:00:12]} 47. Bg7+ {[%emt 0:01:05]} Qxg7 {[%emt 0:01:16]} 0-1

[Event "22nd Hoogeveen Open 2018"]
[Site "Hoogeveen"]
[Date "2018.10.24"]
[Round "6"]
[White "Dev, Shah"]
[Black "Van Randtwijk, Mick"]
[Result "1-0"]
[ECO "E29"]
[WhiteElo "2146"]
[BlackElo "1979"]
[Annotator "NA"]
[PlyCount "89"]
[EventDate "2018.10.20"]
[EventType "swiss"]
[EventCountry "NED"]
[SourceTitle "playchess.com"]
[Source "ChessBase"]
[SourceQuality "1"]
[TimeControl "40/5400+30:1800+30"]

1. d4 {[%emt 0:00:51]} Nf6 {[%emt 0:00:00]} 2. c4 {[%emt 0:00:06]} e6 {[%emt 0:00:00]} 3. Nc3 {[%emt 0:00:04]} Bb4 {[%emt 0:00:00]} 4. e3 {[%emt 0:00:04]} O-O {[%emt 0:00:00]} 5. Bd3 {[%emt 0:00:03]} c5 {[%emt 0:00:09]} 6. Nf3 {[%emt 0:00:17]} Nc6 {[%emt 0:00:18]} 7. O-O {[%emt 0:00:21]} d6 {[%emt 0:00:19]} 8. a3 {[%emt 0:00:24]} Bxc3 {[%emt 0:00:07]} 9. bxc3 {[%emt 0:00:07]} e5 {[%emt 0:01:53]} 10. d5 {[%emt 0:06:48]} Ne7 {[%emt 0:00:45]} 11. e4 {[%emt 0:00:46]} Ng6 {[%emt 0:00:17]} 12. Ne1 {[%emt 0:09:47]} Qa5 $11 {[%emt 0:04:14]} 13. Bd2 {[%emt 0:05:39]} a6 {[%emt 0:03:43]} 14. f3 {[%emt 0:11:50]} b5 {[%emt 0:12:54]} 15. Qe2 {[%emt 0:08:00]} bxc4 {[%emt 0:04:34]} 16. Bxc4 {[%emt 0:00:09]} Rb8 {[%emt 0:00:04]} 17. a4 {[%emt 0:13:20]} Nd7 {[%emt 0:11:46]} 18. Bd3 {[%emt 0:06:48]} Rb2 {[%emt 0:02:08]} 19. Bc2 {[%emt 0:06:20]} Qd8 {[%emt 0:12:26]} 20. Bc1 {[%emt 0:07:51]} Rb6 {[%emt 0:00:42]} 21. Bd3 {[%emt 0:03:21]} a5 {[%emt 0:02:39]} 22. g3 {[%emt 0:01:24]} Qc7 {[%emt 0:05:52]} 23. c4 {[%emt 0:01:11]} Rb4 {[%emt 0:02:07]} 24. Ba3 {[%emt 0:04:22]} Rb8 {[%emt 0:00:05]} 25. Ng2 {[%emt 0:00:09]} Nb6 {[%emt 0:00:29]} 26. Qc2 {[%emt 0:01:00]} Bd7 {[%emt 0:01:10]} 27. Bc1 {[%emt 0:00:05]} Rb7 {[%emt 0:02:52]} 28. Bd2 {[%emt 0:01:00]} Na8 {[%emt 0:01:44]} 29. Bc3 {[%emt 0:01:39]} Rfb8 {[%emt 0:01:13]} 30. f4 {[%emt 0:01:36]} f6 {[%emt 0:00:14]} 31. f5 {[%emt 0:00:38]} Nf8 {[%emt 0:00:23]} 32. g4 {[%emt 0:00:38]} Rb3 {[%emt 0:01:49]} 33. Qd2 {[%emt 0:00:40]} Qa7 {[%emt 0:02:34]} 34. Bc2 {[%emt 0:00:56]} R3b6 {[%emt 0:01:40]} 35. g5 {[%emt 0:02:22]} Be8 {[%emt 0:00:16]} 36. h4 {[%emt 0:01:31]} Qa6 {[%emt 0:04:27]} 37. Ne3 {[%emt 0:01:44]} Qa7 {[%emt 0:01:06]} 38. Kh1 {[%emt 0:03:17]} Kh8 {[%emt 0:02:31]} 39. Rg1 {[%emt 0:00:43]} Ra6 {[%emt 0:00:58]} 40. gxf6 {[%emt 0:00:58]} gxf6 {[%emt 0:00:04]} 41. Ng4 {[%emt 0:01:27]} Qe7 {[%emt 0:02:00]} 42. Nh6 {[%emt 0:01:21]} Bf7 {[%emt 0:00:03]} 43. Qg2 {[%emt 0:00:13]} Bxd5 {[%emt 0:00:05]} 44. Qg8+ {[%emt 0:00:12]} Bxg8 {[%emt 0:00:04]} 45. Rxg8# {[%emt 0:00:06]} 1-0

[Event "22nd Hoogeveen Open 2018"]
[Site "Hoogeveen"]
[Date "2018.10.24"]
[Round "6"]
[White "Vroombout, Enrico"]
[Black "Oord, Raymon"]
[Result "1-0"]
[ECO "D66"]
[WhiteElo "2132"]
[BlackElo "1900"]
[Annotator "NA"]
[PlyCount "121"]
[EventDate "2018.10.20"]
[EventType "swiss"]
[EventCountry "NED"]
[SourceTitle "playchess.com"]
[Source "ChessBase"]
[SourceQuality "1"]
[TimeControl "40/5400+30:1800+30"]

1. d4 {[%emt 0:00:00]} Nf6 {[%emt 0:00:55]} 2. c4 {[%emt 0:00:00]} e6 {[%emt 0:00:10]} 3. Nc3 {[%emt 0:00:00]} d5 {[%emt 0:00:20]} 4. Bg5 {[%emt 0:00:06]} Be7 {[%emt 0:00:25]} 5. e3 {[%emt 0:00:04]} Nbd7 {[%emt 0:00:32]} 6. Nf3 {[%emt 0:00:07]} c6 {[%emt 0:01:36]} 7. Rc1 {[%emt 0:00:33]} O-O {[%emt 0:03:22]} 8. Bd3 {[%emt 0:00:17]} Re8 {[%emt 0:02:15]} 9. O-O {[%emt 0:00:31]} dxc4 {[%emt 0:06:30]} 10. Bxc4 {[%emt 0:00:04] LiveBook: 6 Games} a6 $14 {[%emt 0:07:32]} 11. Qc2 {[%emt 0:17:18]} b5 {[%emt 0:06:18]} 12. Bd3 {[%emt 0:00:17]} Bb7 {[%emt 0:14:28]} 13. Ne5 {[%emt 0:16:04]} h6 {[%emt 0:08:00]} 14. Bxf6 {[%emt 0:06:58]} Bxf6 {[%emt 0:03:23]} 15. Nxd7 {[%emt 0:01:09]} Qxd7 {[%emt 0:00:05]} 16. Ne4 {[%emt 0:00:01]} Be7 {[%emt 0:01:38]} 17. Nc5 {[%emt 0:02:02]} Bxc5 {[%emt 0:01:16]} 18. Qxc5 {[%emt 0:00:46]} e5 {[%emt 0:01:16]} 19. Rfd1 {[%emt 0:01:14]} exd4 {[%emt 0:02:46]} 20. Bf5 {[%emt 0:02:48]} Qc7 {[%emt 0:02:36]} 21. Rxd4 {[%emt 0:10:58]} Re5 {[%emt 0:03:53]} 22. Rd5 {[%emt 0:09:28]} Rxd5 {[%emt 0:02:08]} 23. Qxd5 {[%emt 0:00:03]} Rd8 {[%emt 0:00:58]} 24. Qc5 {[%emt 0:00:02]} Qd6 {[%emt 0:05:47]} 25. Qxd6 {[%emt 0:05:27]} Rxd6 {[%emt 0:00:03]} 26. Be4 {[%emt 0:08:45]} Kf8 {[%emt 0:02:38]} 27. Kf1 {[%emt 0:04:13]} Ke7 {[%emt 0:02:32]} 28. Ke2 {[%emt 0:00:04]} Kd7 {[%emt 0:01:10]} 29. Rc5 {[%emt 0:04:55]} f6 {[%emt 0:03:07]} 30. b4 {[%emt 0:01:56]} Kc7 {[%emt 0:01:14]} 31. f4 {[%emt 0:02:31]} Bc8 {[%emt 0:03:48]} 32. f5 {[%emt 0:00:44]} Bd7 {[%emt 0:01:23]} 33. a3 {[%emt 0:01:52]} Be8 {[%emt 0:00:51]} 34. Bf3 {[%emt 0:02:32]} Bf7 {[%emt 0:00:22]} 35. Be4 {[%emt 0:01:23]} Bc4+ {[%emt 0:00:29]} 36. Kf3 {[%emt 0:00:11]} Kb6 {[%emt 0:01:42]} 37. Kf4 {[%emt 0:01:14]} Bd3 {[%emt 0:04:51]} 38. Bf3 {[%emt 0:01:11]} Bc4 {[%emt 0:00:39]} 39. Be4 {[%emt 0:00:04]} Bd3 {[%emt 0:00:42]} 40. Bf3 {[%emt 0:00:34]} Bc4 {[%emt 0:00:12]} 41. Kg4 {[%emt 0:17:23]} a5 {[%emt 0:01:03]} 42. Kf4 {[%emt 0:00:36]} axb4 {[%emt 0:00:31]} 43. axb4 {[%emt 0:00:05]} Kc7 {[%emt 0:02:12]} 44. g4 {[%emt 0:02:05]} Kd7 {[%emt 0:02:02]} 45. h4 {[%emt 0:00:08]} Kc7 {[%emt 0:03:09]} 46. Kg3 {[%emt 0:01:26]} Kd7 {[%emt 0:01:40]} 47. Kf4 {[%emt 0:00:33]} Kc7 {[%emt 0:00:24]} 48. g5 {[%emt 0:00:03]} hxg5+ {[%emt 0:01:20]} 49. hxg5 {[%emt 0:00:03]} fxg5+ {[%emt 0:02:24]} 50. Kxg5 {[%emt 0:00:07]} Bf7 {[%emt 0:01:30]} 51. Re5 {[%emt 0:05:23]} Kd8 {[%emt 0:01:34]} 52. Re4 {[%emt 0:01:03]} Rf6 {[%emt 0:12:14]} 53. Rh4 {[%emt 0:02:52]} Ke7 {[%emt 0:04:42]} 54. Rh7 {[%emt 0:01:41]} Kf8 {[%emt 0:00:17]} 55. e4 {[%emt 0:02:24]} Rd6 {[%emt 0:02:41]} 56. e5 {[%emt 0:00:37]} Rd4 {[%emt 0:02:05]} 57. Bxc6 {[%emt 0:00:35]} Rxb4 {[%emt 0:00:39]} 58. e6 {[%emt 0:00:18]} Rc4 {[%emt 0:02:26]} 59. Rh8+ {[%emt 0:01:44]} Bg8 {[%emt 0:00:08]} 60. Rxg8+ {[%emt 0:00:27]} Kxg8 {[%emt 0:01:05]} 61. e7 {[%emt 0:00:03]} 1-0